Cogmind - Beta 14 @@@ ROGUE MODE // 2024.10.05 @ 16:38:11 Player: Plexion Result: Destroyed by Y-54 Guardian with Flak Gun Performance ------------- Evolutions (0) 0 Regions Visited (4) 800 Robots Destroyed (31) 155 Value Destroyed (841) 841 Prototype IDs (0) 0 Alien Tech Used (0) 0 Bonus (0) 0 TOTAL SCORE: 1796 Bonus ------- None Cogmind --------- Core Integrity 0/250 Matter 240/300 Energy 75/100 System Corruption 0% Temperature Warm (166) Movement Treading (240) Ox1 Location -7/Recycling Parts ------- > --- POWER (1) -------- (None) > --- PROPULSION (2) --- Light Treads Medium Treads > --- UTILITY (2) ------ High-capacity Storage Unit Improved Light Armor Plating > --- WEAPON (2) ------- Beam Cannon Battle Cannon > --- INVENTORY (20) --- Subdweller Power Source Subdweller Power Source Wheel Compact Wheel Combat Airjet Seismic Detector Improved Light Armor Plating Gun Armor Makeshift Thermal Plating Subdweller Laser Improved EM Pulse Cannon Assault Rifle Subdweller Machine Gun Bore Cannon Grenade Launcher Mini Grenade Launcher Datajack Mining Laser Makeshift Hammer Scythe Peak State ------------ > --- POWER ------------ (None) > --- PROPULSION ------- Light Treads Medium Treads > --- UTILITY ---------- High-capacity Storage Unit Improved Light Armor Plating > --- WEAPON ----------- Makeshift Hammer Scythe > --- INVENTORY -------- Subdweller Power Source Subdweller Power Source Wheel Compact Wheel Combat Airjet Seismic Detector Improved Light Armor Plating Gun Armor Makeshift Thermal Plating Subdweller Laser Improved EM Pulse Cannon Beam Cannon Assault Rifle Subdweller Machine Gun Battle Cannon Bore Cannon Grenade Launcher Mini Grenade Launcher Datajack Mining Laser [Rating: 21] Favorites ----------- Power Ion Engine Engine Ion Engine Propulsion Light Treads Treads Light Treads Utility High-capacity Storage Unit Device Seismic Detector Storage High-capacity Storage Unit Protection Improved Light Armor Plating Weapon Assault Rifle Energy Gun Medium Laser Energy Cannon Beam Cannon Ballistic Gun Assault Rifle Ballistic Cannon Battle Cannon Launcher Grenade Launcher Impact Weapon Makeshift Hammer Slashing Weapon Scythe Build | -11 -10 -10 -10 -7 ------- Run | Yrd Mat Min Sub Rec Slots Evolved . | . . . . . Power . | . . . . . Propulsion . | . . . . . Utility . | . . . . . Weapon . | . . . . . Parts Attached 34 | 7 8 2 10 7 Power 2 | 1 . 1 . . Engine 2 | 1 . 1 . . Core . | . . . . . Reactor . | . . . . . Propulsion 6 | 2 2 . . 2 Treads 6 | 2 2 . . 2 Leg . | . . . . . Wheel . | . . . . . Hover . | . . . . . Flight . | . . . . . Utility 13 | 2 3 . 6 2 Device 5 | 1 1 . 3 . Storage 3 | 1 2 . . . Processor . | . . . . . Hackware . | . . . . . Protection 5 | . . . 3 2 Artifact . | . . . . . Weapon 13 | 2 3 1 4 3 Energy Gun 3 | 1 1 1 . . Energy Cannon 1 | . . . . 1 Ballistic Gun 1 | 1 . . . . Ballistic Cannon 3 | . . . 2 1 Launcher 1 | . 1 . . . Special Weapon . | . . . . . Impact Weapon 3 | . 1 . 2 . Slashing Weapon 1 | . . . . 1 Piercing Weapon . | . . . . . Special Melee Weapon . | . . . . . Unidentified Prototypes . | . . . . . Parts Lost 2 | . . 1 1 . Power 2 | . . 1 1 . Propulsion . | . . . . . Utility . | . . . . . Weapon . | . . . . . Highest Loss Streak 1 | . . 1 1 . To Critical Strikes . | . . . . . Average Slot Usage (%) 94 | . 99 100 94 85 Engine 9 | . 14 14 8 . Treads 27 | . 27 28 28 28 Device 12 | . 14 14 11 11 Storage 14 | . 14 14 14 14 Protection 1 | . . . 2 2 Energy Gun 4 | . 9 9 . . Ballistic Gun 6 | . 14 14 . . Ballistic Cannon 7 | . . . 18 . Launcher 1 | . 4 4 . . Impact Weapon 6 | . . . 7 17 Slashing Weapon 1 | . . . . 9 Peak Build Rating 21 | 7 7 10 17 21 Average Rating 12 | 4 6 8 14 17 On Entrance 7 | . 7 7 10 13 Naked Turns . | . . . . . Heaviest Build 60 | 15 51 51 60 49 Greatest Support 48 | 40 40 40 40 48 Greatest Overweight (x) 1 | . 1 1 1 1 Average Overweight (x) . | . . 1 1 . Largest Inventory Capacity 20 | 8 20 20 20 20 Average Capacity 19 | 6 16 20 20 20 Most Carried 20 | 5 9 20 20 20 Average Carried 16 | 2 7 13 19 19 Final Capacity 20 | 8 20 20 20 20 Final Carried 20 | 4 9 20 20 20 Class Distribution -------------------- 100% | Mutant Dominant Class ---------------- Mutant | -10/Materials Mutant | -10/Mines Mutant | -10/Subcaves Mutant | -7/Recycling Resources | -11 -10 -10 -10 -7 ----------- Run | Yrd Mat Min Sub Rec Matter Collected 982 | 285 155 117 311 114 Remotely . | . . . . . Salvage Created 999 | 88 291 227 118 275 Parts 59 | 9 21 10 7 12 Haulers Intercepted 1 | . 1 . . . Recyclers Shooed 2 | . . 1 . 1 Parts Field Recycled . | . . . . . Retrieved Matter . | . . . . . Parts Self-Destructed 15 | . . . 15 . Prevented . | . . . . . Kills | -11 -10 -10 -10 -7 ------- Run | Yrd Mat Min Sub Rec Combat Hostiles Destroyed 20 | . 8 6 5 1 Melee 2 | . . . 1 1 Guns 9 | . 3 6 . . Cannons 4 | . . . 4 . AOE 5 | . 5 . . . Classes Destroyed 10 | 2 4 1 1 2 Builder 1 | . . . . 1 Tunneler 2 | 2 . . . . Hauler 1 | . 1 . . . Recycler 4 | 1 . . . 3 Watcher 3 | . 3 . . . Swarmer 3 | . 3 . . . Grunt 9 | . 5 4 . . Sentry 1 | . . . . 1 Demolisher 2 | . . 2 . . Subdweller 5 | . . . 5 . Best Kill Streak 6 | 3 6 2 1 1 Combat Bots Only 5 | . 5 2 1 1 Max Kills in Single Turn 2 | 1 2 1 1 1 Gunslinging . | . . . . . Exploded 2 | . 2 . . . Melee 1 | . . . 1 1 Uniques/NPCs Destroyed . | . . . . . Combat | -11 -10 -10 -10 -7 -------- Run | Yrd Mat Min Sub Rec Hostile Shots Fired 124 | . 33 19 27 45 Missed 35 | . 6 5 9 15 Damage Taken 1166 | . 347 236 363 220 Core 252 | . 76 54 63 59 Absorbed by Shields . | . . . . . Regen/Repaired (Parts) 76 | . 76 . . . Core Remaining (%) 100 | 100 . . . . Volleys Fired 79 | 5 29 16 25 4 Largest 2 | 2 2 2 2 2 Hottest 99 | 70 70 70 96 99 Shots Fired 150 | 8 52 32 50 8 Gun 86 | 8 46 32 . . Cannon 58 | . . . 50 8 Launcher 6 | . 6 . . . Special . | . . . . . Kinetic 98 | 5 23 16 50 4 Thermal 46 | 3 23 16 . 4 Explosive 6 | . 6 . . . Electromagnetic . | . . . . . Robot Hit Streak 13 | 6 8 12 11 13 Robot Miss Streak 4 | 1 4 2 3 1 Penetration Max . | . . . . . Secondary Targets 1 | . . 1 . . Max Gunslinging Chain 1 | . . 1 . . Shots Hit Robots 115 | 6 36 21 37 15 Core Hits 46 | 4 19 13 7 3 Critical Kills 1 | . . . 1 . Critical Parts Destroyed 1 | . . . 1 . Critical Strikes 13 | . 4 3 6 . Burn 7 | . 4 3 . . Destroy 6 | . . . 6 . Melee Attacks 26 | . 3 . 10 13 Impact 18 | . 3 . 10 5 Slashing 8 | . . . . 8 Piercing . | . . . . . Sneak Attacks 8 | . . . . 8 Combat Hostiles 1 | . . . . 1 Follow-up Attacks . | . . . . . Damage Inflicted 2691 | 76 824 300 697 794 Guns 766 | 76 416 274 . . Cannons 707 | . . . 552 155 Explosions 408 | . 408 . . . Melee 784 | . . . 145 639 Ramming 26 | . . 26 . . Kinetic 1038 | 50 219 134 552 83 Thermal 435 | 26 197 140 . 72 Explosive 408 | . 408 . . . Electromagnetic . | . . . . . Impact 530 | . . . 145 385 Slashing 254 | . . . . 254 Piercing . | . . . . . Highest Corruption . | . . . . . Average Corruption . | . . . . . Corruption Purged . | . . . . . Corruption Blocked . | . . . . . Overload Shots . | . . . . . Overflow Damage 307 | . 25 . . 282 Projectiles . | . . . . . Explosions 25 | . 25 . . . Melee 282 | . . . . 282 Knockbacks 6 | . . . 5 1 Impact 1 | . . . . 1 Kinetic 5 | . . . 5 . Secondary . | . . . . . Self-Inflicted Damage 21 | . 21 . . . Shots 1 | . 1 . . . Rammed 3 | . . 3 . . Targets Rammed 3 | . . 3 . . Kicked . | . . . . . Crushed . | . . . . . Highest Temperature 174 | 18 174 76 . 148 Average Temperature 43 | 9 53 27 . 73 Received Heat Transfer 378 | . 174 84 54 66 Siege Activations . | . . . . . Robots Corrupted 1 | . . . . 1 Combat Hostiles . | . . . . . Parts Fried . | . . . . . Impact Corruptions 5 | . . . . 5 Robots Melted . | . . . . . Combat Hostiles . | . . . . . Parts Melted 3 | . 2 1 . . Heat Transferred 1702 | 74 851 629 . 148 Parts Sabotaged . | . . . . . Parts Stolen . | . . . . . Parts Stripped . | . . . . . Power Chain Reactions . | . . . . . Alert | -11 -10 -10 -10 -7 ------- Run | Yrd Mat Min Sub Rec Peak Influence 165 | 15 165 100 . 157 Initial 21 | . 9 3 . 21 Average 44 | 4 58 22 . 67 Maximum Alert Level . | . . . . . Low Security (%) 100 | 100 100 100 . 100 Level 1 . | . . . . . Level 2 . | . . . . . Level 3 . | . . . . . Level 4 . | . . . . . Level 5 . | . . . . . High Security . | . . . . . Max Security . | . . . . . Squads Dispatched 1 | . 1 . . . Investigation 1 | . 1 . . . Extermination . | . . . . . Reinforcement . | . . . . . Assault . | . . . . . Garrison . | . . . . . Intercept . | . . . . . Searches Triggered . | . . . . . Construction Impeded . | . . . . . Haulers Reinforced . | . . . . . Active Scanning Responses . | . . . . . Cargo Convoy Interrupts . | . . . . . Stealth | -11 -10 -10 -10 -7 --------- Run | Yrd Mat Min Sub Rec Distress Signals 2 | . 2 . . . Communications Jammed . | . . . . . Distress Signals . | . . . . . Times Spotted 39 | . 14 6 17 2 Peak Tracking Total 6 | . 6 2 2 2 Tactical Retreats 7 | . 1 . 6 . Traps | -11 -10 -10 -10 -7 ------- Run | Yrd Mat Min Sub Rec Traps Triggered 1 | . 1 . . . Indirectly . | . . . . . Trap Hack Attempts . | . . . . . Triggered . | . . . . . Disarmed . | . . . . . Reprogrammed . | . . . . . Reused . | . . . . . Traps Extracted . | . . . . . Installed . | . . . . . Triggered . | . . . . . Machines | -11 -10 -10 -10 -7 ---------- Run | Yrd Mat Min Sub Rec Machines Disabled . | . . . . . Max in Single Turn . | . . . . . Machines Repaired . | . . . . . Machines Dismantled . | . . . . . Machines Sabotaged . | . . . . . Overloaded Fab Kills . | . . . . . Hacking | -11 -10 -10 -10 -7 --------- Run | Yrd Mat Min Sub Rec Machines Accessed 17 | . 6 . . 11 Terminals 9 | . 5 . . 4 Fabricators . | . . . . . Repair Stations 1 | . 1 . . . Recycling Units 7 | . . . . 7 Scanalyzers . | . . . . . Garrison Access . | . . . . . Total Hacks 37 | . 19 . . 18 Successful 24 | . 12 . . 12 Failed 13 | . 7 . . 6 Catastrophic 1 | . . . . 1 Database Lockouts . | . . . . . Manual 34 | . 15 . . 19 Terminals 24 | . 15 . . 9 Fabricators . | . . . . . Repair Stations 4 | . 4 . . . Recycling Units 9 | . . . . 9 Scanalyzers . | . . . . . Garrison Access . | . . . . . Terminal Hacks 2 | . 1 . . 1 Robot Analysis 1 | . 1 . . . Terminal Index 1 | . . . . 1 Fabricator Hacks . | . . . . . Repair Station Hacks 4 | . 4 . . . Scan Component 2 | . 2 . . . Repair 2 | . 2 . . . Recycling Unit Hacks . | . . . . . Scanalyzer . | . . . . . Garrison Access Hacks . | . . . . . Unauthorized Hacks 18 | . 7 . . 11 Terminals 11 | . 7 . . 4 Botnet 3 | . 1 . . 2 Operators 1 | . 1 . . . Skim 7 | . 5 . . 2 Fabricators . | . . . . . Repair Stations . | . . . . . Recycling Units 7 | . . . . 7 Tunnel 7 | . . . . 7 Scanalyzers . | . . . . . Garrison Access . | . . . . . Data Cores Recovered . | . . . . . Used . | . . . . . Hacking Detections 11 | . 6 . . 5 Full Trace Events . | . . . . . Feedback Events . | . . . . . Feedback Blocked . | . . . . . Robot Schematics Acquired . | . . . . . Robots Built . | . . . . . Authchips . | . . . . . Time . | . . . . . Total Robot Build Rating . | . . . . . Part Schematics Acquired . | . . . . . Parts Built . | . . . . . Authchips . | . . . . . Time . | . . . . . Total Part Build Rating . | . . . . . Parts Repaired 2 | . 2 . . . Time 52 | . 52 . . . Parts Recycled . | . . . . . Recycled Matter . | . . . . . Retrieved Matter . | . . . . . Retrieved Components . | . . . . . Parts Scanalyzed . | . . . . . Part Schematics Acquired . | . . . . . Parts Damaged . | . . . . . Bothacking | -11 -10 -10 -10 -7 ------------ Run | Yrd Mat Min Sub Rec Used RIF Installer . | . . . . . Robots Hacked . | . . . . . Non-combat . | . . . . . Combat . | . . . . . Robot Hacks Applied . | . . . . . Relay Couplers Released . | . . . . . Fabnet Peak Effective % . | . . . . . Robots Rewired . | . . . . . Allies Hacked . | . . . . . Hacks Repelled . | . . . . . Allies | -11 -10 -10 -10 -7 -------- Run | Yrd Mat Min Sub Rec Total Allies 1 | . . 1 . . Largest Group 1 | . . 1 . . Highest-Rated Group 31 | . . 31 . . Highest-Rated Ally 31 | . . 31 . . Total Orders . | . . . . . Ally Attacks 1 | . . 1 . . Total Damage 20 | . . 20 . . Kills . | . . . . . Allies Corrupted . | . . . . . Allies Melted . | . . . . . Intel | -11 -10 -10 -10 -7 ------- Run | Yrd Mat Min Sub Rec Robot Analysis Total 1 | . 1 . . . Derelict Logs Recovered 3 | . . 1 2 . Drone Launches . | . . . . . Drone Recoveries . | . . . . . Exploration | -11 -10 -10 -10 -7 ------------- Run | Yrd Mat Min Sub Rec Turns Passed 5948 | 116 895 1623 2136 1178 Spaces Moved 2424 | 58 345 611 777 633 Core 3 | 3 . . . . Treads 2421 | 55 345 611 777 633 Legs . | . . . . . Wheels . | . . . . . Hover . | . . . . . Flight . | . . . . . Fastest Speed 50 | 50 160 240 240 160 Average Speed 216 | 154 206 240 240 176 Slowest Speed 240 | 160 240 240 240 240 Overloaded Moves . | . . . . . Propulsion Burnouts . | . . . . . Robots Hopped . | . . . . . Cave-ins Triggered . | . . . . . Exploration Rate (%) 54 | 4 66 88 46 69 Regions Visited 4 Branch Regions 3 Pre-discovered Areas 8 | . . . 1 7 Known Exits Taken 3 | . 1 1 1 . Unknown Exits Taken 1 | 1 . . . . Scrap Searched 2 | . . 2 . . Spaces Dug 10 | . 1 . 4 5 Terrain Destroyed 52 | . 35 . 12 5 Melee 8 | . 1 . 2 5 Projectile 10 | . . . 10 . AOE 34 | . 34 . . . Terrain Rammed . | . . . . . Walls Destroyed . | . . . . . Machines Disabled . | . . . . . Actions | -11 -10 -10 -10 -7 --------- Run | Yrd Mat Min Sub Rec Total 2938 | 74 469 732 990 673 Wait 329 | . 79 89 153 8 Move 2420 | 57 344 610 776 633 Hop . | . . . . . Pick Up 31 | 5 4 12 8 2 Fast Attach 10 | 6 2 . 1 1 Attach 2 | 1 . 1 . . Detach . | . . . . . Swap 22 | . 6 1 9 6 Drop 17 | . 2 . 9 6 Fire 79 | 5 29 16 25 4 Melee 25 | . 3 . 9 13 Ram . | . . . . . Kick . | . . . . . Crush 3 | . . 3 . . Escape Stasis . | . . . . . Rewire . | . . . . . Trap . | . . . . . Miscellaneous . | . . . . . Route ------- -11/Scrapyard -10/Materials (discovered 5 exits: *Mat x3 / *Min / Sub) -10/Mines (discovered 3 exits: *Mat x2 / *Sub) -10/Subcaves (discovered 3 exits: [*Mat x2] / *Rec) -7/Recycling History --------- Turn | Location | Event 12 | -11/Scrapyard | Discovered new exit (range 15) 117 | -11/Scrapyard | Entered Materials 224 | -10/Materials | Discovered new exit (range 13) 300 | -10/Materials | Build established: Mutant 314 | -10/Materials | Discovered new exit (range 11) 571 | -10/Materials | Identified exit to Materials 586 | -10/Materials | Repaired Lgt. Treads 614 | -10/Materials | Repaired Lgt. Treads 675 | -10/Materials | Learned Storage trap positions 678 | -10/Materials | Identified exit to Mines 679 | -10/Materials | Identified exit to Subcaves 695 | -10/Materials | Learned Materials emergency access door positions 720 | -10/Materials | Loaded intel: 22 trap records 1012 | -10/Materials | Entered Mines 1104 | -10/Mines | Learned location of 1 exit from Materials 1191 | -10/Mines | Received a Mining Laser from a helpful Derelict 1415 | -10/Mines | Assembled infested the area 1839 | -10/Mines | Core integrity fell below 50% 2020 | -10/Mines | Discovered exit to Materials (range 8) 2029 | -10/Mines | A weapon hastily lodged in a ceiling crevice suddenly fell to the ground 2165 | -10/Mines | Found DCF Scrap (14 items) 2165 | -10/Mines | Discovered exit to Materials (range 8) 2623 | -10/Mines | Discovered exit to Subcaves (range 6) 2635 | -10/Mines | Entered Subcaves 2636 | -10/Subcaves | Identified exit to Recycling 2650 | -10/Subcaves | Learned Materials stockpile data 2730 | -10/Subcaves | Shifting Twisted Machinery released Hvy. Riot Gun 2730 | -10/Subcaves | Learned location of Zion (-6) 2730 | -10/Subcaves | Met a Zionite searching for "candidates" 2733 | -10/Subcaves | Shifting Twisted Machinery released Battle Cannon 2788 | -10/Subcaves | Learned 4 Materials zone layouts 3131 | -10/Subcaves | A swath of the cavern ceiling suddenly collapsed 3249 | -10/Subcaves | A Subdweller sparked back to life 3348 | -10/Subcaves | Found Prototype Protection 3554 | -10/Subcaves | Discovered new exit (range 9) 4057 | -10/Subcaves | Discovered new exit (range 2) 4065 | -10/Subcaves | Shifting Twisted Machinery released Mak. Thermal Plating 4075 | -10/Subcaves | Shifting Twisted Machinery released Mak. Hammer 4771 | -10/Subcaves | Entered Recycling 5943 | -7/Recycling | Core integrity fell below 20% 5949 | -7/Recycling | Destroyed by Y-54 Guardian with Flak Gun Last Messages --------------- 05547_ U-05 Engineer builds a Wall. 05613_ Sneak attack on R-06 Scavenger. 05613_ Destroyed Com. Wheel. 05768_ Sneak attack on Y-54 Guardian. 05768_ Y-54 Guardian destroyed. 05770_ Acquired 10 matter. 05772_ R-06 Scavenger collects Imp. Deuterium Engine. 05775_ R-06 Scavenger collects Flak Gun. 05776_ Sneak attack on R-06 Scavenger. 05776_ Destroyed Com. Wheel. 05776_ Destroyed Tractor Beam. 05781_ Dropped Imp. Light Armor Plating. 05784_ Dropped Lgt. Treads. 05788_ Dropped Huge Storage Unit. 05790_ Acquired Imp. Light Armor Plating. 05813_ R-06 Scavenger collects Huge Storage Unit. 05817_ R-06 Scavenger collects Lgt. Treads. 05939_ Y-54 Guardian springs to life. 05945_ U-05 Engineer destroyed. 05948_ R-06 Scavenger destroyed. Map ----- +----------------------------------------------------+ | ????????????????????????????????????? | | ????????????????????????????????????? | | ????????????????????????????????????? | | ????????????????????????????????????? | | ????????????????????????????????????? | | ????????????????????????????????????? | | ????????????????????????????????????? | | ????????????????????????????????????? | | ????????????????????????????????????? | | ????????????????????????????????????? | | ????????????????????????????????????? | | ???????????????##???????????????????? | | ????????????### ????????????????????? | | ???????????? ????????????????????? | | ???????????? %????????????????????? | | ???????????# ????????????????????? | | ???????????# Y##???????????????????? | | ???????????# % ! ???????????????????? | | ??????????? %%!!????????????????????? | | ???????????#Y! !????????????????????? | | ???????????# #????????????????????? | | ???????????# #????????????????????? | | ???????????# #????????????????????? | | ???????????# #????????????????????? | | ???????????# #????????????????????? | | ???????????#@ #????????????????????? | | ??########## !#????????????????????? | | ??# T # %#????????????????????? | | ??# # =#????????????????????? | | ??# # #????????????????????? | | ??#""" # #????????????????????? | | ??#""" + #????????????????????? | | ??#""" # #????????????????????? | | ??#""" # ###??????????????????? | | ??#""" # ""#??????????????????? | | ??# # Y"#??????????????????? | | ??########## ""#??????????????????? | | ???????????# ###??????????????????? | | ??########?#r #????????????????????? | | ??# # #???????????????????## | | ??# # #??????????????????##! | | ?# + ###????????????????#%= | | ??# # %%#????????????????## | | ??# # % #?????????????????# | | ??# ?# %%#?????????????????# | | ??# ?# ###?????????????????# | | ??# ??# #???????????????????# | | ??# ??# #???????????????????# | | ??######???# #???????????????????# | | ???????????# #???????????????????# | +----------------------------------------------------+ Best States ------------- Heat Dissipation 25 Energy Generation 10 Energy Capacity 250 Matter Stores 300 Matter Capacity 300 Sight Range 16 Terrain Scan Density 10 Armor Coverage 150 Evasion (%) 40 Recoil Reduction 2 Item Schematics ----------------- None Robot Schematics ------------------ None Fabricated ------------ Nothing Alien Tech Used ----------------- None Achievements -------------- None Challenges ------------ None Game ------ Seed TripodVortexPurifier Manual? 0 Play Time 00:19:15 Cumulative 629.5 hours Start 2024.10.05 @ 16:19:14 End 2024.10.05 @ 16:38:11 Sessions 1 Manual Loads 0 Difficulty Rogue Special Mode None Game No. 686 Rogue 599 Adventurer 87 Explorer 0 Win Type - Total 38 Types 8/0/24/1/1/1/3/0/0 Lore% 95 Gallery% 93 Achievement% 80 Wizard Run 0 Options --------- Layout 0 ASCII 0 Keyboard 1 Movement Numpad Keybinds 0 Fullscreen 2 Font 18/SmallcapsGlow Map View 76x50 Zoom Use 0% Tactical HUD 1 Map Filters NONE Filters NONE Steam 1 RUN: 7501ada1-ebd7-48c8-b5f3-427680c4543d